lending/lending_fUSD_20260110
["ID","MTS","AMOUNT","RATE_DAILY","PERIOD"]
[401212820,1768048249151,-3491.36319809,0.00017636,2]
[401212821,1768048249161,-11312.89016599,0.00017636,2]
[401212822,1768048249170,-188.04348929,0.00017636,2]
[401212823,1768048249180,-252.68743637,0.00017636,2]
[401212824,1768048249190,-260.75602621,0.00017636,2]
[401212825,1768048249199,-213.87423394,0.00017636,2]
[401212826,1768048249209,-177.21892515,0.00017636,2]
[401212827,1768048249219,-1279.45,0.00017638,2]
[401212828,1768048249228,-150.0,0.0001764,2]
[401212829,1768048249239,-150.0,0.0001764,2]
[401212830,1768048249249,-150.0,0.0001764,2]
[401212831,1768048249258,-10537.80982193,0.0001764,2]
[401212832,1768048249268,-188.04348929,0.00017655,2]
[401212833,1768048249277,-252.68743637,0.00017655,2]
[401212834,1768048249289,-260.75602621,0.00017655,2]
[401212835,1768048249299,-213.87423394,0.00017655,2]
[401212836,1768048249308,-177.21892515,0.00017655,2]
[401212837,1768048249318,-150.0,0.00017665,2]
[401212838,1768048249328,-150.0,0.0001767,2]
[401212839,1768048249337,-188.04348929,0.00017673,2]
[401212840,1768048249348,-252.68743637,0.00017673,2]
[401212841,1768048249358,-260.75602621,0.00017673,2]
[401212842,1768048249367,-213.87423394,0.00017673,2]
[401212843,1768048249376,-177.21892515,0.00017673,2]
[401212844,1768048249386,-834.0,0.0001768,2]
[401212845,1768048249395,-561.2,0.0001769,2]
[401212846,1768048249405,-188.04348929,0.00017691,2]
[401212847,1768048249415,-252.68743637,0.00017691,2]
[401212848,1768048249425,-260.75602621,0.00017691,2]
[401212849,1768048249435,-213.87423394,0.00017691,2]
[401212850,1768048249444,-177.21892515,0.00017691,2]
[401212851,1768048249455,-150.0,0.000177,2]
[401212852,1768048249464,-1000.0,0.000177,2]
[401212853,1768048249473,-150.0,0.00017707,2]
[401212854,1768048249483,-188.04348929,0.00017709,2]
[401212855,1768048249492,-252.68743637,0.00017709,2]
[401212856,1768048249502,-260.75602621,0.00017709,2]
[401212857,1768048249511,-213.87423394,0.00017709,2]
[401212858,1768048249521,-177.21892515,0.00017709,2]
[401212859,1768048249531,-1424.982,0.00017717,2]
[401212860,1768048249540,-2441.065,0.00017717,2]
[401212861,1768048249550,-1330.0,0.00017717,2]
[401212862,1768048249559,-542.84141296,0.00017718,2]
[401212863,1768048249569,-334.5472959,0.00017724,2]
[401212864,1768048249580,-151.0,0.00017724,2]
[401212865,1768048249590,-642.94,0.00017724,2]
[401212866,1768048249599,-188.04348929,0.00017727,2]
[401212867,1768048249609,-252.68743637,0.00017727,2]
[401212868,1768048249619,-260.75602621,0.00017727,2]
[401212869,1768048249628,-213.87423394,0.00017727,2]
[401212870,1768048249638,-177.21892515,0.00017727,2]
[401212871,1768048249649,-150.0,0.0001773,2]
[401212872,1768048249660,-7554.21886386,0.0001773,2]
[401212873,1768048249670,-1400.0,0.00017734,7]
[401212874,1768048249679,-4820.0,0.00017738,2]
[401212875,1768048249689,-188.04348929,0.00017745,2]
[401212876,1768048249699,-252.68743637,0.00017745,2]
[401212877,1768048249708,-260.75602621,0.00017745,2]
[401212878,1768048249718,-213.87423394,0.00017745,2]
[401212879,1768048249728,-177.21892515,0.00017745,2]
[401212880,1768048249737,-150.0,0.00017749,2]
[401212881,1768048249746,-1000.0,0.00017752,2]
[401212882,1768048249756,-1000.0,0.00017752,2]
[401212883,1768048249765,-150.0,0.0001776,2]
[401212884,1768048249775,-150.0,0.0001776,2]
[401212885,1768048249785,-188.04348929,0.00017764,2]
[401212886,1768048249795,-252.68743637,0.00017764,2]
[401212887,1768048249805,-260.75602621,0.00017764,2]
[401212888,1768048249817,-213.87423394,0.00017764,2]
[401212889,1768048249829,-177.21892515,0.00017764,2]
[401212890,1768048249839,-561.2,0.00017767,2]
[401212891,1768048249848,-150.0,0.00017775,2]
[401212892,1768048249858,-188.04348929,0.00017782,2]
[401212893,1768048249867,-252.68743637,0.00017782,2]
[401212894,1768048249877,-260.75602621,0.00017782,2]
[401212895,1768048249886,-213.87423394,0.00017782,2]
[401212896,1768048249898,-177.21892515,0.00017782,2]
[401212897,1768048249911,-150.0,0.0001779,2]
[401212898,1768048249921,-150.0,0.00017791,2]
[401212899,1768048249931,-188.04348929,0.000178,2]
[401212900,1768048249948,-252.68743637,0.000178,2]
[401212901,1768048249966,-260.75602621,0.000178,2]
[401212902,1768048249977,-213.87423394,0.000178,2]
[401212903,1768048249986,-177.21892515,0.000178,2]
[401212904,1768048249996,-1000.0,0.000178,2]
[401212905,1768048250007,-207.26988174,0.00017808,2]
[401212906,1768048250017,-216.0,0.00017808,2]
[401212907,1768048250026,-542.84141294,0.00017809,2]
[401212908,1768048250036,-500.0,0.00017813,2]
[401212909,1768048250045,-500.0,0.00017813,2]
[401212910,1768048250055,-11543.224356,0.00017814,2]
[401212911,1768048250065,-276431.4166499,0.00017814,2]
[401212912,1768048250075,-188.04348929,0.00017818,2]
[401212913,1768048250084,-252.68743637,0.00017818,2]
[401212914,1768048250095,-260.75602621,0.00017818,2]
[401212915,1768048250104,-213.87423394,0.00017818,2]
[401212916,1768048250114,-177.21892515,0.00017818,2]
[401212917,1768048250124,-150.0,0.0001782,2]
[401212918,1768048250134,-4000.0,0.0001782,2]
[401212919,1768048250144,-4000.0,0.0001782,2]
[401212920,1768048250154,-159.35537069,0.0001782,2]
[401212921,1768048250163,-24666.13896743,0.0001783,2]
[401212922,1768048250173,-4000.0,0.0001783,2]
[401212923,1768048250183,-150.0,0.00017833,2]
[401212924,1768048250193,-188.04348929,0.00017836,2]
[401212925,1768048250202,-252.68743637,0.00017836,2]
[401212926,1768048250212,-260.75602621,0.00017836,2]
[401212927,1768048250222,-213.87423394,0.00017836,2]
[401212928,1768048250232,-177.21892515,0.00017836,2]
[401212929,1768048250242,-152.0,0.00017838,3]
[401212930,1768048250251,-560.646,0.00017839,2]
[401212931,1768048250262,-561.2,0.00017845,2]
[401212932,1768048250273,-150.0,0.0001785,2]
[401212933,1768048250283,-188.04348929,0.00017855,2]
[401212934,1768048250293,-252.68743637,0.00017855,2]
[401212935,1768048250303,-260.75602621,0.00017855,2]
[401212936,1768048250313,-213.87423394,0.00017855,2]
[401212937,1768048250323,-177.21892515,0.00017855,2]
[401212938,1768048250333,-1177.0,0.00017855,2]
[401212939,1768048250342,-200.0,0.00017855,2]
[401212940,1768048250352,-2000.0,0.00017856,2]
[401212941,1768048250361,-200.0,0.00017856,2]
[401212942,1768048250371,-200.0,0.00017856,2]
[401212943,1768048250381,-4000.0,0.0001786,2]
[401212944,1768048250391,-623.0,0.00017869,2]
[401212945,1768048250401,-188.04348929,0.00017873,2]
[401212946,1768048250410,-252.68743637,0.00017873,2]
[401212947,1768048250421,-260.75602621,0.00017873,2]
[401212948,1768048250431,-213.87423394,0.00017873,2]
[401212949,1768048250441,-177.21892515,0.00017873,2]
[401212950,1768048250451,-1887.20841984,0.00017873,2]
[401212951,1768048250460,-150.0,0.00017874,2]
[401212952,1768048250470,-1887.20841984,0.00017878,2]
[401212953,1768048250480,-150.0,0.0001788,2]
[401212954,1768048250490,-150.0,0.0001788,2]
[401212955,1768048250500,-4000.0,0.0001788,2]
[401212956,1768048250510,-1887.20841984,0.00017884,2]
[401212957,1768048250520,-1887.20841984,0.00017889,2]
[401212958,1768048250531,-188.04348929,0.00017891,2]
[401212959,1768048250541,-252.68743637,0.00017891,2]
[401212960,1768048250551,-260.75602621,0.00017891,2]
[401212961,1768048250561,-213.87423394,0.00017891,2]
[401212962,1768048250572,-177.21892515,0.00017891,2]
[401212963,1768048250582,-25000.0,0.00017891,3]
[401212964,1768048250593,-1887.20841984,0.00017895,2]
[401212965,1768048250603,-25000.0,0.000179,3]
[401212966,1768048250613,-6228.92016198,0.000179,3]
[401212967,1768048250623,-591.38897096,0.000179,2]
[401212968,1768048250632,-3491.36319809,0.000179,2]
[401212969,1768048250643,-11312.89016599,0.000179,2]
[401212970,1768048250653,-542.84141294,0.000179,2]
[401212971,1768048250662,-27210.80105031,0.000179,2]
[401212972,1768048250671,-1173.69062061,0.000179,2]
[401212973,1768048250680,-298.63270858,0.000179,2]
[401212974,1768048250690,-1173.69062044,0.000179,2]
[401212975,1768048250700,-1173.69062044,0.000179,2]
[401212976,1768048250709,-1173.69062044,0.000179,2]
[401212977,1768048250719,-1173.69062044,0.000179,2]
[401212978,1768048250729,-179.38897292,0.000179,3]
[401212979,1768048250739,-1173.69062044,0.000179,2]
[401212980,1768048250748,-1173.69062044,0.000179,2]
[401212981,1768048250759,-1173.69062044,0.000179,2]
[401212982,1768048250769,-1173.69062044,0.000179,2]
[401212983,1768048250779,-1173.69062044,0.000179,2]
[401212984,1768048250788,-1173.69062044,0.000179,2]
[401212985,1768048250797,-1887.20841984,0.000179,2]
[401212986,1768048250807,-1349.09797668,0.000179,2]
[401212987,1768048250817,-1173.69062044,0.000179,2]
[401212988,1768048250827,-6752.0,0.000179,2]
[401212989,1768048250837,-188.04348929,0.00017909,2]
[401212990,1768048250847,-252.68743637,0.00017909,2]
[401212991,1768048250856,-260.75602621,0.00017909,2]
[401212992,1768048250866,-213.87423394,0.00017909,2]
[401212993,1768048250876,-177.21892515,0.00017909,2]
[401212994,1768048250886,-150.0,0.0001791,2]
[401212995,1768048250896,-4000.0,0.0001791,2]
[401212996,1768048250910,-1279.45,0.00017912,2]
[401212997,1768048250920,-150.0,0.00017916,2]
[401212998,1768048250930,-561.2,0.00017922,2]
[401212999,1768048250939,-188.04348929,0.00017927,2]
[401213000,1768048250949,-252.68743637,0.00017927,2]
[401213001,1768048250959,-260.75602621,0.00017927,2]
[401213002,1768048250968,-213.87423394,0.00017927,2]
[401213003,1768048250979,-177.21892515,0.00017927,2]
[401213004,1768048250988,-150.0,0.0001794,2]
[401213005,1768048250998,-188.04348929,0.00017945,2]
[401213006,1768048251008,-252.68743637,0.00017945,2]
[401213007,1768048251018,-260.75602621,0.00017945,2]
[401213008,1768048251027,-213.87423394,0.00017945,2]
[401213009,1768048251038,-177.21892515,0.00017945,2]
[401213010,1768048251048,-181.00537575,0.00017946,2]
[401213011,1768048251058,-1177.0,0.00017948,2]
[401213012,1768048251068,-172.27,0.00017958,2]
[401213013,1768048251078,-150.0,0.00017958,2]
[401213014,1768048251088,-188.04348929,0.00017964,2]
[401213015,1768048251097,-252.68743637,0.00017964,2]
[401213016,1768048251107,-260.75602621,0.00017964,2]
[401213017,1768048251117,-213.87423394,0.00017964,2]
[401213018,1768048251127,-177.21892515,0.00017964,2]
[401213019,1768048251137,-150.0,0.0001797,2]
[401213020,1768048251147,-500.0,0.00017972,2]
[401213021,1768048251156,-303.0,0.00017973,2]
[401213022,1768048251166,-500.0,0.00017973,2]
[401213023,1768048251176,-500.0,0.00017973,2]
[401213024,1768048251185,-500.0,0.00017973,2]
[401213025,1768048251195,-500.0,0.00017973,2]
[401213026,1768048251205,-500.0,0.00017973,2]
[401213027,1768048251214,-500.0,0.00017973,2]
[401213028,1768048251224,-641.77796518,0.00017973,2]
[401213029,1768048251234,-150.34167383,0.00017973,2]
[401213030,1768048251244,-500.0,0.00017973,2]
[401213031,1768048251254,-500.0,0.00017973,2]
[401213032,1768048251264,-260.97339631,0.00017973,2]
[401213033,1768048251274,-500.0,0.00017973,2]
[401213034,1768048251284,-500.0,0.00017973,2]
[401213035,1768048251293,-300.29995774,0.00017973,2]
[401213036,1768048251304,-610.19552731,0.00017973,2]
[401213037,1768048251314,-500.0,0.00017973,2]
[401213038,1768048251324,-500.0,0.00017973,2]
[401213039,1768048251334,-500.0,0.00017973,2]
[401213040,1768048251343,-500.0,0.00017973,2]
[401213041,1768048251353,-500.0,0.00017973,2]
[401213042,1768048251362,-500.0,0.00017973,2]
[401213043,1768048251371,-191.10319937,0.00017973,2]
[401213044,1768048251380,-501.2767774,0.00017973,2]
[401213045,1768048251391,-500.0,0.00017973,2]
[401213046,1768048251400,-500.0,0.00017973,2]
[401213047,1768048251410,-433.9562915,0.00017973,2]
[401213048,1768048251420,-500.0,0.00017973,2]
[401213049,1768048251429,-500.0,0.00017973,2]
[401213050,1768048251438,-500.0,0.00017973,2]
[401213051,1768048251448,-500.0,0.00017973,2]
[401213052,1768048251457,-500.0,0.00017973,2]
[401213053,1768048251467,-500.0,0.00017973,2]
[401213054,1768048251476,-500.0,0.00017973,2]
[401213055,1768048251486,-500.0,0.00017973,2]
[401213056,1768048251495,-500.0,0.00017973,2]
[401213057,1768048251505,-902.15010015,0.00017973,2]
[401213058,1768048251514,-500.0,0.00017973,2]
[401213059,1768048251524,-500.0,0.00017973,2]
[401213060,1768048251534,-500.0,0.00017973,2]
[401213061,1768048251546,-500.0,0.00017973,2]
[401213062,1768048251556,-500.0,0.00017973,2]
[401213063,1768048251567,-500.0,0.00017973,2]
[401213064,1768048251577,-588.0072514,0.00017973,2]
[401213065,1768048251588,-500.0,0.00017973,2]
[401213066,1768048251598,-500.0,0.00017973,2]
[401213067,1768048251608,-500.85151996,0.00017973,2]
[401213068,1768048251618,-571.47009533,0.00017973,2]
[401213069,1768048251629,-150.0,0.00017973,2]
[401213070,1768048251639,-150.0,0.00017973,2]
[401213071,1768048251650,-188.04348929,0.00017982,2]
[401213072,1768048251660,-252.68743637,0.00017982,2]
[401213073,1768048251670,-260.75602621,0.00017982,2]
[401213074,1768048251680,-213.87423394,0.00017982,2]
[401213075,1768048251691,-177.21892515,0.00017982,2]
[401213076,1768048251701,-500.0,0.00017982,2]
[401213077,1768048251712,-639.19956225,0.0001799,2]
[401213078,1768048251723,-639.19956225,0.0001799,2]
[401213079,1768048251733,-500.0,0.00017991,2]
[401213080,1768048251743,-92719.692184,0.00017992,2]
[401213081,1768048251753,-32360.2976494,0.00017992,2]
[401213082,1768048251763,-5889.4001815,0.00017992,2]
[401213083,1768048251773,-95049.0594042,0.00017992,2]
[401213084,1768048251782,-236.715994,0.00017992,2]
[401213085,1768048251791,-151.0,0.00017992,2]
[401213086,1768048251801,-769.26786,0.00017992,2]
[401213087,1768048251811,-236.715994,0.00017992,2]
[401213088,1768048251821,-769.26786,0.00017992,2]
[401213089,1768048251830,-236.715994,0.00017992,2]
[401213090,1768048251840,-151.0,0.00017992,2]
[401213091,1768048251850,-236.715994,0.00017992,2]
[401213092,1768048251861,-769.26786,0.00017992,2]
[401213093,1768048251871,-466.385678,0.00017992,2]
[401213094,1768048251880,-769.26786,0.00017992,2]
[401213095,1768048251890,-151.0,0.00017992,2]
[401213096,1768048251902,-466.385678,0.00017992,2]
[401213097,1768048251913,-151.0,0.00017992,2]
[401213098,1768048251923,-1006.5165,0.00017999,2]
[401213099,1768048251935,-300.0,0.00017999,2]
[401213100,1768048251948,-249.76041872,0.00017999,2]
[401213101,1768048251958,-300.0,0.00017999,2]
[401213102,1768048251968,-177.487158,0.00017999,2]
[401213103,1768048251980,-300.0,0.00017999,2]
[401213104,1768048251990,-11563.77530464,0.00017999,2]
[401213105,1768048252000,-300.0,0.00017999,2]
[401213106,1768048252011,-666.0,0.00017999,2]
[401213107,1768048252021,-500.0,0.00017999,2]
[401213108,1768048252032,-500.0,0.00017999,2]
[401213109,1768048252044,-359.11221161,0.00017999,2]
[401213110,1768048252054,-151.0,0.00017999,2]
[401213111,1768048252065,-553.64373807,0.00017999,2]
[401213112,1768048252076,-201.93286099,0.00017999,2]
[401213113,1768048252087,-177.94612834,0.00017999,2]
[401213114,1768048252098,-188.04348929,0.00018,2]
[401213115,1768048252109,-252.68743637,0.00018,2]
[401213116,1768048252120,-260.75602621,0.00018,2]
[401213117,1768048252130,-196.21798024,0.00018,2]
[401213118,1768048252142,-213.87423394,0.00018,2]
[401213119,1768048252153,-223.10788253,0.00018,2]
[401213120,1768048252163,-177.21892515,0.00018,2]
[401213121,1768048252174,-178.17676299,0.00018,2]
[401213122,1768048252185,-231.22039699,0.00018,2]
[401213123,1768048252196,-157.59943203,0.00018,2]
[401213124,1768048252206,-252.12379273,0.00018,2]
[401213125,1768048252217,-156.68286018,0.00018,2]
[401213126,1768048252228,-508913.63282348,0.00018,2]
[401213127,1768048252860,-1854.36,0.00018,2]
[401213128,1768048252873,-3608.27472446,0.00018,2]
[401213129,1768048252885,-2900.18651994,0.00018,2]
[401213130,1768048253254,-13866.1066969,0.00018,2]
[401213131,1768048253270,-242028.7626935,0.00018,2]
[401213132,1768048253287,-3252.33298064,0.00018,2]
[401213133,1768048253501,-1173.69062044,0.000179,2]
[401213134,1768048253511,-255.17474078,0.000179,2]
[401213135,1768048253524,-2784.25829287,0.000179,2]
[401213136,1768048253534,-466.385678,0.00017992,2]
[401213137,1768048253543,-466.385678,0.00017992,2]
[401213138,1768048253553,-53059.93387669,0.00018,2]
[401213139,1768048253569,-1844.40697459,0.00018,2]
[401213140,1768048253581,-10697.4689662,0.00018,2]
[401213141,1768048253593,-6883.494434,0.00018,2]
[401213142,1768048253604,-1242.13822015,0.00018,2]
[401213143,1768048253616,-721.8465621,0.00018,2]
[401213144,1768048253633,-3210.0,0.00018,2]
[401213145,1768048253650,-1218.0,0.00018,2]
[401213146,1768048253668,-1197.65795577,0.00018,2]
[401213147,1768048253773,-161.659,0.00017738,2]
[401213148,1768048253783,-6125.29590451,0.00018,2]
[401213149,1768048253794,-5712.99188177,0.00018,2]
[401213150,1768048253812,-1375.32586997,0.00018,2]
[401213151,1768048253824,-3907.98117481,0.00018,2]
[401213152,1768048253836,-651.4799978,0.00018,2]
[401213153,1768048253847,-2332.25914526,0.00018,2]
[401213154,1768048253860,-2079.50002,0.00018,2]
[401213155,1768048253871,-753.01482349,0.00018,2]
[401213156,1768048253883,-993.0,0.00018,2]
[401213157,1768048293637,1894.053,0.00015112,2]
[401213158,1768048293670,187.143,0.00015112,2]
[401213167,1768048329445,-162.14755588,0.00015321,2]
[401213168,1768048331812,-181.23282194,0.00015321,2]
[401213169,1768048339615,2428.9506,0.00015073,2]
[401213170,1768048400455,500.0,0.00015073,2]
[401213172,1768048426722,-300.0,0.0001532,2]
[401213173,1768048426751,-300.0,0.0001532,2]
[401213174,1768048426781,-1200.0,0.0001532,2]
[401213175,1768048435977,-8518.60123327,0.00015321,2]
[401213176,1768048437102,-10000.01,0.00015321,2]
[401213177,1768048437117,-10000.01,0.00015321,2]
[401213178,1768048437135,-10000.01,0.00015321,2]
[401213179,1768048623084,200.0,0.00015152,2]
[401213180,1768048626469,2646.48,0.00015152,2]
[401213181,1768048736042,200.0,0.00014911,2]
[401213182,1768048750082,-183.51205855,0.00015173,2]
[401213183,1768048752164,-316.48794145,0.00015173,2]
[401213184,1768048752186,-158.90132406,0.00015173,2]
[401213185,1768048756737,-268.42305266,0.00015173,2]
[401213186,1768048764544,-72.67562328,0.00015173,2]
[401213187,1768048764567,-213.20330559,0.00015173,2]
[401213188,1768048764590,-175.36735229,0.00015191,2]
[401213189,1768048804527,276.0,0.00015191,2]
[401213190,1768048815082,299.06,0.00014757,2]
[401213191,1768048853491,222.85,0.00014698,2]
[401213192,1768048910789,-19.63264771,0.00015191,2]
[401213193,1768048910818,-250.0,0.00015201,2]
[401213194,1768048910847,-300.0,0.0001521,2]
[401213195,1768048910876,-2819.14303888,0.00015221,2]
[401213196,1768048911057,-3222.45862682,0.00015221,2]
[401213197,1768048911088,-268.42305266,0.00015235,2]
[401213198,1768048911117,-300.0,0.00015248,2]
[401213199,1768048911148,-300.0,0.00015248,2]
[401213200,1768048911178,-618.24664104,0.00015248,2]
[401213201,1768048918884,-581.75335896,0.00015248,2]
[401213202,1768048918933,-8836.50328208,0.00015249,2]
[401213203,1768048918948,-10000.01,0.00015249,2]
[401213204,1768048964469,10000.01,0.00014696,2]
[401213205,1768048964500,10000.01,0.00014696,2]
[401213206,1768048964525,10000.01,0.00014696,2]
[401213207,1768048964549,9508.84,0.00014696,2]
[401213208,1768048965842,-217.8887226,0.00015173,2]
[401213209,1768048968078,-250.0,0.00015173,2]
[401213210,1768048970847,-32.1112774,0.00015173,2]
[401213211,1768048970871,-135.54029661,0.0001524,2]
[401213212,1768048973122,-52.23976864,0.0001524,2]
[401213213,1768048973146,-247.76023136,0.00015249,2]
[401213214,1768048978382,-188.0,0.00015249,2]
[401213215,1768048981333,-300.0,0.00015248,2]
[401213216,1768048981359,-6.72982583,0.00015249,2]
[401213217,1768048983975,-198.00530647,0.00015249,2]
[401213218,1768048998590,491.17,0.00015096,2]
[401213219,1768048998629,993.391398,0.00015096,2]
[401213220,1768049019516,-245.51560955,0.00015173,2]
[401213221,1768049034469,-255.96266245,0.00015173,2]
[401213222,1768049034491,-44.03733755,0.00015248,2]
[401213223,1768049036630,-397.32219352,0.00015248,2]
[401213224,1768049038758,-166.78560955,0.00015248,2]
[401213225,1768049065081,-283.41773429,0.00015248,2]
[401213226,1768049067744,-200.10115847,0.00015248,2]
[401213227,1768049090212,674.7,0.00014768,2]
[401213228,1768049127710,500.0,0.00014656,2]
[401213231,1768049177276,4110.3351,0.00015149,2]
[401213232,1768049183716,3721.583502,0.00015149,2]
[401213233,1768049183739,10000.01,0.00015149,2]
[401213234,1768049183762,10000.01,0.00015149,2]
[401213235,1768049183785,10000.01,0.00015149,2]
[401213236,1768049183808,1521.311098,0.00015149,2]
[401213237,1768049214116,-323.61319503,0.00015173,2]
[401213238,1768049214137,-500.0,0.00015173,2]
[401213239,1768049214157,-500.0,0.00015173,2]
[401213240,1768049214182,-43.04260372,0.00015248,2]
[401213241,1768049228621,8478.698902,0.0001468,2]
[401213242,1768049228646,6623.571098,0.0001468,2]
[401213243,1768049236177,500.0,0.00014692,2]
[401213244,1768049262697,750.332204,0.00015096,2]
[401213245,1768049277006,2126.106698,0.00014781,2]
[401213246,1768049277028,3578.913302,0.00014781,2]
[401213247,1768049282115,300.0,0.00015172,2]
[401213248,1768049295262,1200.0,0.00015172,2]
[401213249,1768049304887,4921.096698,0.00015149,2]
[401213250,1768049304913,10000.01,0.00015149,2]
[401213251,1768049304938,10000.01,0.00015149,2]
[401213252,1768049304963,10000.01,0.00015149,2]
[401213253,1768049304988,10000.01,0.00015149,2]
[401213254,1768049305013,10000.01,0.00015149,2]
[401213255,1768049305038,10000.01,0.00015149,2]
[401213256,1768049305068,10000.01,0.00015149,2]
[401213257,1768049305092,10000.01,0.00015149,2]
[401213258,1768049305117,10000.01,0.00015149,2]
[401213259,1768049316914,998.76,0.00014569,2]
[401213260,1768049318136,-172.01289306,0.00015149,2]
[401213261,1768049321650,-325.44284949,0.00015149,2]
[401213262,1768049324909,-197.56991526,0.00015149,2]
[401213263,1768049328604,-302.43008474,0.00015149,2]
[401213264,1768049330847,-285.88343544,0.00015149,2]
[401213265,1768049334207,-275.60838454,0.00015149,2]
[401213266,1768049338179,-314.11656456,0.00015149,2]
[401213267,1768049342060,-165.51225958,0.00015073,2]
[401213268,1768049345841,-307.47850945,0.00015073,2]
[401213269,1768049346870,-473.35358797,0.00015073,2]
[401213270,1768049349117,-159.04489093,0.00015149,2]
[401213271,1768049350666,-150.0,0.00015073,2]
[401213272,1768049350697,-29.04693237,0.00015149,2]
[401213273,1768049355023,-299.84871669,0.00015149,2]
[401213274,1768049367687,-179.78001979,0.00015073,2]
[401213275,1768049373037,1446.89656036,0.00013079,2]
[401213276,1768049376457,150.0,0.00014583,2]
[401213277,1768049380268,-8693.74278448,0.00015149,2]
[401213278,1768049380385,-10000.01,0.00015149,2]
[401213279,1768049380497,-10000.01,0.00015149,2]
[401213280,1768049380608,-10000.01,0.00015149,2]
[401213281,1768049416421,4453.21234344,0.00015,2]
[401213284,1768049431889,-5638.05163539,0.00015073,2]
[401213285,1768049431899,-1200.0,0.00015148,2]
[401213286,1768049431910,-300.0,0.00015148,2]
[401213287,1768049431920,-864024.03585044,0.00015149,2]
[401213288,1768049431931,-500.0,0.00015173,2]
[401213289,1768049431941,-486.6129027,0.00015173,2]
[401213290,1768049431951,-500.0,0.00015173,2]
[401213291,1768049431961,-500.5237602,0.00015173,2]
[401213292,1768049431971,-216.98407989,0.00015173,2]
[401213293,1768049431981,-501.71026142,0.00015173,2]
[401213294,1768049431991,-169.12378955,0.00015173,2]
[401213295,1768049432001,-500.0,0.00015173,2]
[401213296,1768049432011,-500.0,0.00015173,2]
[401213297,1768049432021,-500.0,0.00015173,2]
[401213298,1768049432031,-1343.26,0.00015173,2]
[401213299,1768049432041,-255.97089312,0.00015198,2]
[401213300,1768049432051,-3091.597,0.00015219,2]
[401213301,1768049432062,-22182.941,0.00015219,2]
[401213302,1768049432071,-231.0,0.00015238,2]
[401213303,1768049432080,-79082.81422119,0.00015239,2]
[401213304,1768049432089,-956.95739628,0.00015248,2]
[401213305,1768049432099,-75708.56135426,0.00015249,2]
[401213306,1768049432108,-998.76,0.00015298,2]
[401213307,1768049432117,-179.78001979,0.00015319,2]
[401213308,1768049432126,-2500.0,0.00015319,2]
[401213309,1768049432137,-33580.3823,0.00015321,2]
[401213310,1768049432146,-5638.05163534,0.00015387,2]
[401213311,1768049432156,-639.19956225,0.00015409,2]
[401213312,1768049432166,-200.0,0.00015411,2]
[401213313,1768049432177,-200.0,0.00015411,2]
[401213314,1768049432187,-151.0,0.00015411,2]
[401213315,1768049432197,-200.0,0.00015411,2]
[401213316,1768049432207,-151.0,0.00015411,2]
[401213317,1768049432216,-151.0,0.00015411,2]
[401213318,1768049432226,-500.0,0.00015411,2]
[401213319,1768049432237,-151.0,0.00015411,2]
[401213320,1768049432246,-151.0,0.00015411,2]
[401213321,1768049432256,-151.0,0.00015411,2]
[401213322,1768049432266,-151.0,0.00015411,2]
[401213323,1768049432276,-151.0,0.00015411,2]
[401213324,1768049432286,-151.0,0.00015411,2]
[401213325,1768049432295,-151.0,0.00015411,2]
[401213326,1768049432305,-151.0,0.00015411,2]
[401213327,1768049432314,-151.0,0.00015411,2]
[401213328,1768049432324,-500.0,0.00015411,2]
[401213329,1768049432333,-151.0,0.00015411,2]
[401213330,1768049432343,-500.0,0.00015411,2]
[401213331,1768049432353,-151.0,0.00015411,2]
[401213332,1768049432363,-500.0,0.00015411,2]